[Event "Slovakia Open 2022"]
[Site "Bratislava"]
[Date "2022.10.02"]
[Round "8.21"]
[White "Babula, Matej"]
[Black "Csontos, Aron"]
[Result "1/2-1/2"]
[ECO "C54"]
[WhiteElo "1864"]
[BlackElo "1962"]
[Annotator "TA"]
[PlyCount "92"]
[EventDate "2022.09.30"]
[EventCountry "SVK"]
[SourceTitle "playchess.com"]
[Source "ChessBase"]
[SourceQuality "1"]
[TimeControl "2700+10"]

{[%evp 17,92,14,24,-7,21,24,27,-21,-40,-41,173,171,165,164,156,171,167,-35,410,378,361,383,543,550,500,-73,-78,-80,-82,-109,-77,-156,-25,-144,-140,-135,-58,-132,-128,-210,6,-329,21,-139,-137,-157,-147,-169,-175,-154,-137,-128,-130,-210,-209,-212,-214,-162,0,0,0,0,0,0,0,0,0,0,0,-8,0,0,0,0,0,-13,0]} 1. e4 {[%emt 0:00:05]} e5 {[%emt 0:00:02]} 2. Nf3 {[%emt 0:00:03]} Nc6 {[%emt 0:00:01]} 3. Bc4 {[%emt 0:00:02]} Bc5 {[%emt 0:00:02]} 4. c3 {[%emt 0:00:02]} Nf6 {[%emt 0:00:02]} 5. d3 {[%emt 0:00:05]} a6 {[%emt 0:00:01]} 6. a4 {[%emt 0:00:12]} O-O {[%emt 0:01:35]} 7. O-O {[%emt 0:00:52]} Ba7 {[%emt 0:00:17]} 8. Bg5 {[%emt 0:02:03]} h6 {[%emt 0:01:39]} 9. Bh4 {[%emt 0:00:14]} d6 {[%emt 0:00:13]} 10. h3 {[%emt 0:01:03] C54: Giuoco Piano: 4 c3 Nf6, main lines with 5 d4 and 5 d3.} Be6 {[%emt 0:02:03]} 11. Nbd2 {[%emt 0:02:05][%cal Bb1d2,Bd2c4,Bc4e3][%mdl 32] [#]} g5 $146 {[%emt 0:02:27]} ({Predecessor:} 11... Qe7 12. b4 Rad8 13. Re1 g5 14. Bg3 Nh5 15. Bh2 Nf4 16. Nf1 Qf6 17. Ne3 Ne7 {0-1 (67) Pavlidis,A (2552)-Klekowski,M (2502) Chess.com INT 2018}) 12. Nxg5 {[%emt 0:06:14]} hxg5 $11 {[%emt 0:00:06]} 13. Bxg5 {[%emt 0:00:02]} Bxc4 $2 {[%emt 0:01:23]} (13... Kg7 $15 {stays ahead.}) 14. Nxc4 {[%emt 0:00:25] aiming for Ne3.} Qe7 {[%emt 0:01:33]} 15. Qf3 {[%emt 0:03:11]} Kg7 {[%emt 0:00:21] [#]} 16. Ne3 $1 {[%emt 0:04:06] White is more active.} Qe6 {[%emt 0:01:31]} (16... Bxe3 $2 17. fxe3 Ng8 18. Qg4 $18) 17. Qg3 {[%emt 0:07:24]} (17. Nf5+ $18 Kh7 18. Qg3) 17... Rg8 $2 {[%emt 0:06:07][%mdl 8192]} (17... Nh5 $15 {keeps the upper hand.} 18. Qh4 Bxe3 19. fxe3 Rh8) 18. Bxf6+ $18 {[%emt 0:02:02]} ({Not} 18. Qh4 Nh7 19. Nf5+ Kh8 $17) 18... Kf8 {[%emt 0:01:44]} (18... Kxf6 $2 19. Nd5+ Qxd5 20. Qf3+ Ke7 21. exd5 $18) 19. Qh4 {[%emt 0:01:09]} Bxe3 {[%emt 0:06:13]} (19... Ke8 {keeps fighting.} 20. Nf5 Kd7) 20. fxe3 {[%emt 0:00:02]} Ke8 {[%emt 0:01:09]} 21. Bg5 $2 {[%emt 0:02:33] [#]} (21. d4 $18 Kd7 22. d5) 21... Qg6 $17 {[%emt 0:00:51] Prevents Qh7.} 22. Qf2 {[%emt 0:05:02]} Qxg5 {[%emt 0:00:29]} 23. Qxf7+ {[%emt 0:00:02]} Kd8 {[%emt 0:00:02][%csl Gg8][%cal Rg5g2]} 24. Rf2 {[%emt 0:02:41]} (24. Qf6+ $142 Qxf6 25. Rxf6) 24... Kc8 {[%emt 0:11:37]} (24... Ne7 $17 {White must now prevent ...Kd7.} 25. Qf3 Kd7) 25. b4 {[%emt 0:01:11]} (25. Raf1 $11) 25... Kb8 {[%emt 0:00:33]} 26. Raf1 {[%emt 0:01:38][%cal Oh3h4]} Rg7 {[%emt 0:01:15]} (26... Ka7 $17 27. Re2 Rg7) 27. Qa2 {[%emt 0:00:36]} (27. Qf6 $15) 27... Qxe3 {[%emt 0:01:04]} 28. Kh1 {[%emt 0:01:51]} Qxd3 $2 {[%emt 0:01:55]} (28... Rg3 $19 29. Kh2 Ka7) 29. b5 $2 {[%emt 0:00:01][%mdl 8192]} (29. Rf3 $1 $11 {and White is okay.} Qxe4 30. Rf8+ Nd8 31. Rxd8+ Ka7 32. Rxa8+ Kxa8 33. Rf8+ Ka7 34. Qf2+ b6 35. a5) 29... Qxe4 $2 {[%emt 0:01:30]} (29... Nd8 $19 {Hoping for ...Ka7.} 30. Qd5 Qxd5 31. exd5 Kc8) 30. bxc6 $2 {[%emt 0:00:16]} ({Better is} 30. Rf8+ $1 $11 Nd8 31. Rxd8+ Ka7 32. Rxa8+ Kxa8 33. Rf8+ Ka7 34. Qf2+ b6 35. a5) 30... Qxc6 {[%emt 0:00:04]} 31. Rf8+ {[%emt 0:01:20]} Ka7 {[%emt 0:00:03] ...Rxf8 is the strong threat.} 32. Qf2+ {[%emt 0:00:03]} b6 {[%emt 0:00:12]} 33. Rxa8+ {[%emt 0:00:40]} Qxa8 $19 {[%emt 0:00:02][%mdl 4096] Endgame KQR-KQR} 34. Qf3 {[%emt 0:00:08]} e4 {[%emt 0:00:36]} 35. Qe3 {[%emt 0:00:13]} (35. Qf6 $17 Rh7 36. a5) 35... a5 {[%emt 0:00:18]} 36. Rf5 {[%emt 0:00:18]} d5 {[%emt 0:00:10]} 37. c4 {[%emt 0:00:52]} Qg8 {[%emt 0:00:20]} ({Black should try} 37... Rd7 $19 {And now ...d4 would win.} 38. cxd5 Rxd5) 38. Rxd5 $11 {[%emt 0:00:21] The position is equal.} Rxg2 {[%emt 0:00:12] Strongly threatening ...Rg3.} 39. Rxa5+ $1 {[%emt 0:00:03]} Kb8 {[%emt 0:00:03]} 40. Ra8+ {[%emt 0:00:21]} Kxa8 {[%emt 0:00:05]} 41. Qxe4+ {[%emt 0:00:01]} Ka7 {[%emt 0:00:09] ( -> ...Rg1+)} 42. Qxg2 {[%emt 0:00:02]} Qxc4 {[%emt 0:00:01] KQ-KQ} 43. Qg4 {[%emt 0:00:10]} Qf1+ {[%emt 0:00:34]} 44. Kh2 {[%emt 0:00:01]} Qf2+ {[%emt 0:00:06]} 45. Kh1 {[%emt 0:00:03]} Qf1+ {[%emt 0:01:42]} 46. Kh2 {[%emt 0:00:10]} Qf2+ {[%emt 0:00:02] Quite a comeback for White.  Weighted Error Value: White=0.53/Black=0.72} 1/2-1/2

[Event "Slovakia Open 2022"]
[Site "Bratislava"]
[Date "2022.10.02"]
[Round "8.22"]
[White "Kucera, Michal"]
[Black "Hryshko Herman"]
[Result "1-0"]
[ECO "B77"]
[WhiteElo "1927"]
[BlackElo "1000"]
[Annotator "TA"]
[PlyCount "113"]
[EventDate "2022.09.30"]
[EventCountry "SVK"]
[SourceTitle "playchess.com"]
[Source "ChessBase"]
[SourceQuality "1"]
[TimeControl "2700+10"]

{[%evp 18,112,81,64,85,32,79,79,120,113,112,110,161,164,199,197,263,258,254,259,280,140,135,165,154,161,159,150,270,270,278,260,670,190,185,185,185,184,29993,185,180,187,593,535,591,163,524,485,1121,1092,871,808,736,715,958,952,1441,1425,29976,2522,1393,391,29985,29982,29982,29983,29983,29984,29984,29985,29985,29985,29986,29985,29985,29986,29986,29987,29987,29988,29988,29989,29989,29990,29990,29991,29991,29992,29993,29993,29995,29995,29997,29997,29998,29999,29999]} 1. e4 {[%emt 0:04:20]} c5 {[%emt 0:00:04]} 2. Nf3 {[%emt 0:00:01]} d6 {[%emt 0:00:05]} 3. d4 {[%emt 0:00:03]} cxd4 {[%emt 0:00:11]} 4. Nxd4 {[%emt 0:00:03]} Nf6 {[%emt 0:00:08]} 5. Nc3 {[%emt 0:00:02]} g6 {[%emt 0:00:32]} 6. Be3 {[%emt 0:00:16]} Bg7 {[%emt 0:00:35]} 7. f3 {[%emt 0:00:17]} Nc6 {[%emt 0:00:31]} 8. Bc4 {[%emt 0:00:37]} O-O {[%emt 0:00:21]} 9. Qd2 {[%emt 0:00:08]} Nd7 {[%emt 0:00:22]} 10. O-O-O {[%emt 0:00:36]} Nde5 {[%emt 0:03:47] B77: Sicilian Dragon: Yugoslav Attack, 9 Bc4 sidelines.} 11. Bb3 {[%emt 0:08:39]} (11. Be2 $16) 11... Nxd4 {[%emt 0:02:43]} (11... Bd7 $14 {feels stronger.}) 12. Bxd4 $16 {[%emt 0:00:10] [#]} Nc6 $146 {[%emt 0:00:30] White is better.} ({Predecessor:} 12... Be6 13. Nd5 a5 14. Bb6 Qd7 15. Bxa5 Bxd5 16. exd5 Rfc8 17. Bc3 Qb5 18. Bxe5 Bxe5 19. Qd3 Qb4 {½-½ (19) Hrubant,I (2133)-Buril,P (1976) Ricany 2006}) 13. Bxg7 {[%emt 0:00:04]} Kxg7 {[%emt 0:00:04]} 14. h4 {[%emt 0:00:20][%cal Bh2h4,Bh4h5][%mdl 32]} Be6 {[%emt 0:01:41]} (14... h5 $16) 15. h5 $18 {[%emt 0:01:29] hxg6 is the strong threat.} Rh8 {[%emt 0:01:44]} 16. Nd5 {[%emt 0:06:29] And now Qc3+ would win.} Na5 {[%emt 0:12:47]} (16... Qa5 $142 17. Qxa5 Nxa5) 17. hxg6 {[%emt 0:02:27]} Nxb3+ {[%emt 0:01:22]} 18. axb3 {[%emt 0:00:34] Dancing on a razor blade.} hxg6 {[%emt 0:00:57]} 19. Qd4+ {[%emt 0:01:51]} ({White should try} 19. Rxh8 $18 Qxh8 20. Qd4+ (20. Nxe7 Qh2 $18) 20... f6 21. Nc7 (21. Nxe7 Qh6+ 22. Kb1 Qh2 $18)) 19... f6 $16 {[%emt 0:01:37]} 20. Rxh8 $40 {[%emt 0:02:52][%mdl 128] White has strong attack.} Kxh8 {[%emt 0:00:57]} 21. Rh1+ {[%emt 0:00:06]} Kg7 {[%emt 0:00:16] [#]} 22. Qd2 {[%emt 0:00:07] Prevents Qa5. White has more active pieces.} g5 {[%emt 0:11:14] [#]} (22... Bxd5 $16 23. Qh6+ (23. Qxd5 Qd7 $14) (23. exd5 Qg8 $16) 23... Kf7) 23. f4 $1 $18 {[%emt 0:04:59]} Bxd5 {[%emt 0:03:13]} 24. exd5 {[%emt 0:00:06][%mdl 4096] Endgame KQR-KQR} ({Don't take} 24. Qxd5 $6 Qd7 $18) 24... g4 {[%emt 0:01:43]} (24... Qd7 25. fxg5 Qf5 26. gxf6+ exf6 27. Qh6+ Kf7) 25. Qe2 $2 {[%emt 0:02:27]} (25. f5 Qg8 26. Qh6+ Kf7 27. Qh5+ Kf8 28. Rh4) 25... Qd7 {[%emt 0:00:16]} 26. f5 $1 {[%emt 0:01:26]} Rg8 {[%emt 0:00:53]} 27. Qxg4+ {[%emt 0:01:22]} Kf7 $2 {[%emt 0:00:23]} (27... Kf8 $18 28. Qe4 Ke8) 28. Qe4 $2 {[%emt 0:01:36]} (28. Rh7+ {mates} Kf8 29. Qh5 Rg7 30. Rh8+ Rg8 31. Qh6+ Kf7 32. Qh7+ Rg7 33. Qh5+ Rg6 34. Qxg6#) 28... Kf8 {[%emt 0:00:24]} 29. g4 {[%emt 0:02:12]} a5 $2 {[%emt 0:00:14]} (29... Ke8 30. Qe3 b6) 30. Rh4 {[%emt 0:00:15]} b5 {[%emt 0:00:17]} 31. Qd4 {[%emt 0:01:31] Prevents Qa7.} (31. Rh7 {aiming for Qe3.} Qa7 32. Kb1) 31... a4 $2 {[%emt 0:00:08]} (31... Kg7 32. Rh3 Kf7 33. Rh7+ Rg7) 32. bxa4 {[%emt 0:00:16]} b4 {[%emt 0:00:16]} (32... bxa4 $142 33. Rh1 Kf7) 33. Qxb4 {[%emt 0:00:23]} Qa7 {[%emt 0:00:03]} 34. b3 {[%emt 0:00:20]} Qe3+ {[%emt 0:00:09]} 35. Kb2 {[%emt 0:00:24] Threatens to win with Rh7.} Qe5+ {[%emt 0:00:05]} 36. Qc3 {[%emt 0:00:52]} Qxd5 {[%emt 0:00:08]} 37. Rh7 {[%emt 0:00:10][%cal Rc3c8]} Qb7 {[%emt 0:00:10] Against Qc8+} 38. Qc4 {[%emt 0:00:23]} (38. Qe3 $142 Qd7 39. a5 d5 40. a6 d4 41. Qe6 Qxe6 42. fxe6 Rg5 43. Rh5) 38... d5 {[%emt 0:00:20]} 39. Qb5 $2 {[%emt 0:00:11]} (39. Qc5 {a5 would kill now.} Rg7 40. Rh8+ Rg8 41. Rxg8+ Kxg8 42. a5) 39... Qa8 {[%emt 0:00:16]} (39... Qxb5 $18 40. axb5 Ke8) 40. Qd7 {[%emt 0:00:13][%csl Gh7][%cal Rd7e7] White mates.} Rg7 {[%emt 0:00:12]} 41. Rxg7 {[%emt 0:00:04]} Kxg7 {[%emt 0:00:02]} 42. Qxe7+ {[%emt 0:00:01] KQ-KQ} Kg8 {[%emt 0:00:08]} 43. Qxf6 {[%emt 0:00:13]} Qa7 {[%emt 0:00:13]} 44. g5 {[%emt 0:00:13]} d4 {[%emt 0:00:09]} 45. g6 {[%emt 0:00:07]} d3 {[%emt 0:00:08]} 46. Qf7+ {[%emt 0:00:16]} Qxf7 {[%emt 0:00:11]} 47. gxf7+ {[%emt 0:00:01]} Kxf7 {[%emt 0:00:02]} 48. cxd3 {[%emt 0:00:01] KP-KP} Kf6 {[%emt 0:00:03]} 49. a5 {[%emt 0:00:01]} Kxf5 {[%emt 0:00:03]} 50. a6 {[%emt 0:00:10]} Ke5 {[%emt 0:00:02]} 51. a7 {[%emt 0:00:00]} Kd4 {[%emt 0:00:01]} 52. a8=Q {[%emt 0:00:00]} Kc5 {[%emt 0:00:04]} 53. Kc3 {[%emt 0:00:00]} Kb5 {[%emt 0:00:02]} 54. Qc8 {[%emt 0:00:06]} Ka5 {[%emt 0:00:08]} 55. Qb8 {[%emt 0:00:06]} Ka6 {[%emt 0:00:03]} 56. Kc4 {[%emt 0:00:04]} Ka5 {[%emt 0:00:04]} 57. Qa7# {[%emt 0:00:03] Weighted Error Value: White=0.84/Black=1.07} 1-0

[Event "Slovakia Open 2022"]
[Site "Bratislava"]
[Date "2022.10.02"]
[Round "8.23"]
[White "Romanova, Ela"]
[Black "Pekar, Matus"]
[Result "0-1"]
[ECO "B07"]
[WhiteElo "1580"]
[BlackElo "1679"]
[Annotator "NA COMBH"]
[PlyCount "66"]
[EventDate "2022.09.30"]
[EventCountry "SVK"]
[SourceTitle "playchess.com"]
[Source "ChessBase"]
[SourceQuality "1"]
[TimeControl "2700+10"]

1. e4 {[%emt 0:01:45]} d6 {[%emt 0:07:56]} 2. d4 {[%emt 0:00:04]} Nf6 {[%emt 0:00:19]} 3. Nc3 {[%emt 0:00:11]} g6 {[%emt 0:00:02]} 4. Bc4 {[%emt 0:00:23]} Bg7 {[%emt 0:00:43]} 5. f3 {[%emt 0:00:06]} a6 {[%emt 0:00:27]} 6. Be3 {[%emt 0:00:07]} b5 {[%emt 0:00:11]} 7. Bb3 {[%emt 0:00:24]} O-O {[%emt 0:00:33]} 8. Qd2 {[%emt 0:00:31]} Nbd7 {[%emt 0:00:37]} 9. Nge2 {[%emt 0:03:45]} Bb7 {[%emt 0:01:28]} 10. h4 {[%emt 0:01:28]} e5 {[%emt 0:01:20]} 11. d5 {[%emt 0:01:26]} h5 {[%emt 0:05:11]} 12. Rg1 {[%emt 0:03:29]} Nc5 {[%emt 0:04:43]} 13. Bh6 {[%emt 0:03:57]} Bc8 {[%emt 0:05:29]} 14. a3 {[%emt 0:02:12]} Rb8 {[%emt 0:01:45]} 15. Ng3 {[%emt 0:04:20]} a5 {[%emt 0:01:16]} 16. Nh1 {[%emt 0:00:49]} Nh7 {[%emt 0:04:03]} 17. g3 {[%emt 0:01:27]} a4 {[%emt 0:01:17]} 18. Ba2 {[%emt 0:00:10]} b4 {[%emt 0:00:21]} 19. axb4 {[%emt 0:03:08]} Rxb4 {[%emt 0:00:10]} 20. Rb1 {[%emt 0:01:25]} Qf6 {[%emt 0:02:05]} 21. Bxg7 {[%emt 0:02:01]} Kxg7 {[%emt 0:00:11]} 22. Ne2 {[%emt 0:05:18]} Rb6 {[%emt 0:00:48]} 23. Qe3 {[%emt 0:00:27]} Ba6 {[%emt 0:00:52]} 24. Qf2 {[%emt 0:02:31]} Rfb8 {[%emt 0:00:17]} 25. g4 {[%emt 0:00:36]} Rxb2 {[%emt 0:01:00]} 26. Rxb2 {[%emt 0:01:49]} Rxb2 {[%emt 0:00:11]} 27. Nc3 {[%emt 0:00:02]} Nd3+ {[%emt 0:00:43]} 28. cxd3 {[%emt 0:00:36]} Rxf2 {[%emt 0:00:02]} 29. Nxf2 {[%emt 0:00:12]} Qxf3 {[%emt 0:00:20]} 30. gxh5 {[%emt 0:01:14]} Qxh5 {[%emt 0:00:37]} 31. Nxa4 {[%emt 0:00:41]} Qxh4 {[%emt 0:00:13]} 32. Rh1 {[%emt 0:03:56]} Qg3 {[%emt 0:05:20]} 33. Ke2 {[%emt 0:00:10]} Ng5 {[%emt 0:00:10]} 0-1

[Event "Slovakia Open 2022"]
[Site "Bratislava"]
[Date "2022.10.02"]
[Round "8.24"]
[White "Benci, Jozef"]
[Black "Migalko, Dmitriy"]
[Result "0-1"]
[ECO "B23"]
[WhiteElo "1873"]
[BlackElo "1528"]
[Annotator "NA RC COMBH"]
[PlyCount "52"]
[EventDate "2022.09.30"]
[EventCountry "SVK"]
[SourceTitle "playchess.com"]
[Source "ChessBase"]
[SourceQuality "1"]
[TimeControl "2700+10"]

1. e4 {[%emt 0:00:08]} c5 {[%emt 0:00:02]} 2. Nc3 {[%emt 0:00:02]} e6 {[%emt 0:00:02]} 3. f4 {[%emt 0:00:04]} d5 {[%emt 0:00:11]} 4. Bb5+ {[%emt 0:00:09]} Nc6 {[%emt 0:00:00]} 5. d3 {[%emt 0:01:23]} d4 {[%emt 0:00:00]} 6. Nce2 {[%emt 0:00:15]} Qa5+ {[%emt 0:00:05]} 7. c3 {[%emt 0:05:28]} Qxb5 {[%emt 0:00:39]} 8. Nf3 {[%emt 0:00:11]} Qb6 {[%emt 0:00:46]} 9. cxd4 {[%emt 0:00:54]} cxd4 {[%emt 0:00:56]} 10. O-O {[%emt 0:00:05]} Nf6 {[%emt 0:00:42]} 11. b3 {[%emt 0:02:37]} Bd7 {[%emt 0:03:18]} 12. Bb2 {[%emt 0:00:03]} O-O-O {[%emt 0:00:19]} 13. Kh1 {[%emt 0:00:18]} Kb8 {[%emt 0:01:29]} 14. Nexd4 {[%emt 0:01:39]} Ng4 {[%emt 0:01:22]} 15. Qe2 {[%emt 0:05:32]} Bc5 {[%emt 0:03:41]} 16. Nxc6+ {[%emt 0:00:12]} Bxc6 {[%emt 0:00:08]} 17. d4 {[%emt 0:00:12]} Bb5 {[%emt 0:02:05]} 18. dxc5 {[%emt 0:05:52]} Qxc5 {[%emt 0:00:31]} 19. Qe1 {[%emt 0:02:00]} Bxf1 {[%emt 0:01:16]} 20. Qxf1 {[%emt 0:03:57]} Nf2+ {[%emt 0:00:08]} 21. Kg1 {[%emt 0:00:05]} Nxe4+ {[%emt 0:00:06]} 22. Kh1 {[%emt 0:00:21]} Nf2+ {[%emt 0:00:04]} 23. Kg1 {[%emt 0:00:02]} Nd3+ {[%emt 0:00:07]} 24. Bd4 {[%emt 0:02:22]} Rxd4 {[%emt 0:00:25]} 25. Nxd4 {[%emt 0:00:02]} Qxd4+ {[%emt 0:00:02]} 26. Kh1 {[%emt 0:00:03]} Rd8 {[%emt 0:01:41]} 0-1

[Event "Slovakia Open 2022"]
[Site "Bratislava"]
[Date "2022.10.02"]
[Round "8.25"]
[White "Hlavac, Tomas"]
[Black "Park, Seonjae"]
[Result "0-1"]
[ECO "B51"]
[WhiteElo "1554"]
[BlackElo "1704"]
[Annotator "NA COMBH"]
[PlyCount "114"]
[EventDate "2022.09.30"]
[EventCountry "SVK"]
[SourceTitle "playchess.com"]
[Source "ChessBase"]
[SourceQuality "1"]
[TimeControl "2700+10"]

1. e4 {[%emt 0:00:05]} c5 {[%emt 0:00:38]} 2. Nf3 {[%emt 0:00:03]} d6 {[%emt 0:00:10]} 3. Bb5+ {[%emt 0:00:03]} Nd7 {[%emt 0:00:00]} 4. O-O {[%emt 0:00:19]} a6 {[%emt 0:00:00]} 5. Bxd7+ {[%emt 0:00:03]} Bxd7 {[%emt 0:00:00]} 6. c3 {[%emt 0:00:23]} g6 {[%emt 0:01:51]} 7. Re1 {[%emt 0:00:46]} Bg7 {[%emt 0:00:05]} 8. d4 {[%emt 0:00:40]} Qc7 {[%emt 0:01:41]} 9. Bf4 {[%emt 0:04:13]} e5 {[%emt 0:01:56]} 10. dxe5 {[%emt 0:03:11]} dxe5 {[%emt 0:01:01]} 11. Bg3 {[%emt 0:00:29]} Ne7 {[%emt 0:00:32]} 12. h3 {[%emt 0:00:23]} O-O {[%emt 0:00:47]} 13. Nbd2 {[%emt 0:00:08]} b5 {[%emt 0:00:12]} 14. Nf1 {[%emt 0:00:45]} Rad8 {[%emt 0:02:30]} 15. Qc2 {[%emt 0:00:08]} h6 {[%emt 0:02:32]} 16. Rad1 {[%emt 0:00:26]} Be6 {[%emt 0:00:11]} 17. b3 {[%emt 0:00:49]} c4 {[%emt 0:00:22]} 18. Ne3 {[%emt 0:03:22]} f6 {[%emt 0:03:50]} 19. bxc4 {[%emt 0:03:53]} Bxc4 {[%emt 0:01:26]} 20. Nxc4 {[%emt 0:00:17]} Qxc4 {[%emt 0:00:03]} 21. Qb3 {[%emt 0:01:06]} Rc8 {[%emt 0:02:05]} 22. Rd7 {[%emt 0:06:52]} Rf7 {[%emt 0:00:50]} 23. Ra7 {[%emt 0:01:49]} Qxb3 {[%emt 0:00:17]} 24. axb3 {[%emt 0:00:03]} Rxc3 {[%emt 0:00:03]} 25. Rxa6 {[%emt 0:01:28]} Rxb3 {[%emt 0:00:27]} 26. Rc1 {[%emt 0:00:28]} g5 {[%emt 0:02:15]} 27. Rc5 {[%emt 0:02:48]} Ng6 {[%emt 0:03:14]} 28. Rb6 {[%emt 0:01:17]} Rb1+ {[%emt 0:01:13]} 29. Kh2 {[%emt 0:00:04]} b4 {[%emt 0:00:03]} 30. Nd2 {[%emt 0:00:32]} Rb2 {[%emt 0:01:39]} 31. Rd5 {[%emt 0:01:58]} Rc7 {[%emt 0:04:08]} 32. Rdd6 {[%emt 0:03:54]} Kf7 {[%emt 0:00:36]} 33. Nf3 {[%emt 0:00:24]} Ne7 {[%emt 0:01:51]} 34. Ne1 {[%emt 0:01:02]} Nc8 {[%emt 0:00:16]} 35. Nd3 {[%emt 0:00:19]} Rd2 {[%emt 0:01:29]} 36. Rbc6 {[%emt 0:01:59]} Rxc6 {[%emt 0:00:59]} 37. Rxc6 {[%emt 0:00:17]} Rxd3 {[%emt 0:00:23]} 38. Rxc8 {[%emt 0:00:01]} Bf8 {[%emt 0:00:09]} 39. Rc1 {[%emt 0:00:55]} b3 {[%emt 0:00:28]} 40. f3 {[%emt 0:00:07]} b2 {[%emt 0:01:16]} 41. Rb1 {[%emt 0:00:11]} Rb3 {[%emt 0:00:01]} 42. Bf2 {[%emt 0:00:18]} Bb4 {[%emt 0:00:10]} 43. Kg1 {[%emt 0:00:32]} Ke6 {[%emt 0:01:24]} 44. Kf1 {[%emt 0:00:04]} Bc3 {[%emt 0:00:58]} 45. Be1 {[%emt 0:00:12]} Bxe1 {[%emt 0:00:16]} 46. Kxe1 {[%emt 0:00:02]} Kd6 {[%emt 0:00:01]} 47. Kd2 {[%emt 0:00:04]} Kc5 {[%emt 0:00:04]} 48. Kc2 {[%emt 0:00:05]} Rb6 {[%emt 0:00:25]} 49. Rxb2 {[%emt 0:00:07]} Rxb2+ {[%emt 0:00:02]} 50. Kxb2 {[%emt 0:00:01]} Kd4 {[%emt 0:00:10]} 51. Kb3 {[%emt 0:01:00]} Ke3 {[%emt 0:00:04]} 52. Kc4 {[%emt 0:00:02]} Kf2 {[%emt 0:00:09]} 53. Kd5 {[%emt 0:00:01]} Kxg2 {[%emt 0:00:02]} 54. Ke6 {[%emt 0:00:10]} Kxf3 {[%emt 0:00:05]} 55. Kxf6 {[%emt 0:00:00]} Kxe4 {[%emt 0:00:01]} 56. Kg6 {[%emt 0:00:00]} Kf4 {[%emt 0:00:02]} 57. Kxh6 {[%emt 0:00:02]} e4 {[%emt 0:00:01]} 0-1

[Event "Slovakia Open 2022"]
[Site "Bratislava"]
[Date "2022.10.02"]
[Round "8.26"]
[White "Dubnicka, Ferdinand"]
[Black "Hasala, Richard"]
[Result "0-1"]
[ECO "B50"]
[WhiteElo "1494"]
[BlackElo "1537"]
[Annotator "NA RC COMBH"]
[PlyCount "114"]
[EventDate "2022.09.30"]
[EventCountry "SVK"]
[SourceTitle "playchess.com"]
[Source "ChessBase"]
[SourceQuality "1"]
[TimeControl "2700+10"]

1. e4 {[%emt 0:00:09]} c5 {[%emt 0:00:02]} 2. Nf3 {[%emt 0:00:03]} d6 {[%emt 0:00:01]} 3. h3 {[%emt 0:00:04]} Nf6 {[%emt 0:00:04]} 4. Bc4 {[%emt 0:00:01]} Nc6 {[%emt 0:00:40]} 5. d3 {[%emt 0:00:02]} a6 {[%emt 0:00:05]} 6. a4 {[%emt 0:00:06]} b6 {[%emt 0:00:04]} 7. O-O {[%emt 0:00:03]} Bb7 {[%emt 0:00:01]} 8. Nc3 {[%emt 0:00:04]} g6 {[%emt 0:00:02]} 9. Bg5 {[%emt 0:00:02]} Bg7 {[%emt 0:00:02]} 10. Qd2 {[%emt 0:00:37]} O-O {[%emt 0:01:11]} 11. Bh6 {[%emt 0:03:40]} e6 {[%emt 0:00:31]} 12. Bxg7 {[%emt 0:00:09]} Kxg7 {[%emt 0:00:02]} 13. Qg5 {[%emt 0:00:10]} h6 {[%emt 0:00:59]} 14. Qe3 {[%emt 0:00:27]} d5 {[%emt 0:00:11]} 15. exd5 {[%emt 0:00:08]} exd5 {[%emt 0:00:01]} 16. Nxd5 {[%emt 0:01:16]} Nxd5 {[%emt 0:00:04]} 17. Qd2 {[%emt 0:01:27]} Nf6 {[%emt 0:00:32]} 18. Qc3 {[%emt 0:00:09]} Nd4 {[%emt 0:00:20]} 19. Nxd4 {[%emt 0:00:53]} Qxd4 {[%emt 0:00:25]} 20. Qb3 {[%emt 0:00:10]} Qd6 {[%emt 0:00:15]} 21. f3 {[%emt 0:00:04]} Bd5 {[%emt 0:00:10]} 22. Qc3 {[%emt 0:00:28]} Bxc4 {[%emt 0:00:02]} 23. dxc4 {[%emt 0:00:02]} Qd4+ {[%emt 0:00:01]} 24. Qxd4 {[%emt 0:00:09]} cxd4 {[%emt 0:00:01]} 25. b3 {[%emt 0:00:07]} Rfd8 {[%emt 0:00:08]} 26. Rad1 {[%emt 0:00:11]} Rd6 {[%emt 0:00:25]} 27. Rd3 {[%emt 0:00:00]} Rad8 {[%emt 0:00:02]} 28. Re1 {[%emt 0:00:00]} R6d7 {[%emt 0:00:21]} 29. g4 {[%emt 0:00:21]} Ne8 {[%emt 0:00:47]} 30. Kf2 {[%emt 0:00:01]} Nc7 {[%emt 0:00:02]} 31. Re5 {[%emt 0:00:14]} Ne6 {[%emt 0:00:21]} 32. Kg3 {[%emt 0:00:06]} Nc5 {[%emt 0:00:13]} 33. Rd2 {[%emt 0:00:25]} d3 {[%emt 0:00:06]} 34. a5 {[%emt 0:00:19]} dxc2 {[%emt 0:00:54]} 35. Rxc2 {[%emt 0:00:10]} Nxb3 {[%emt 0:00:04]} 36. axb6 {[%emt 0:00:00]} Nd4 {[%emt 0:00:11]} 37. Ra2 {[%emt 0:00:00]} Rc8 {[%emt 0:01:54]} 38. c5 {[%emt 0:00:06]} f6 {[%emt 0:00:23]} 39. b7 {[%emt 0:00:12]} Rxb7 {[%emt 0:00:21]} 40. Rd5 {[%emt 0:00:10]} Ne6 {[%emt 0:00:07]} 41. Rxa6 {[%emt 0:00:13]} Rxc5 {[%emt 0:00:18]} 42. Rdd6 {[%emt 0:00:04]} Nf8 {[%emt 0:00:35]} 43. Rxf6 {[%emt 0:00:02]} Rf7 {[%emt 0:00:05]} 44. Rxf7+ {[%emt 0:02:18]} Kxf7 {[%emt 0:00:01]} 45. h4 {[%emt 0:00:03]} Re5 {[%emt 0:03:26]} 46. Rd6 {[%emt 0:00:07]} Re6 {[%emt 0:00:03]} 47. Rd8 {[%emt 0:00:11]} Ke7 {[%emt 0:00:11]} 48. Rb8 {[%emt 0:00:05]} Rd6 {[%emt 0:00:54]} 49. Rb7+ {[%emt 0:00:11]} Rd7 {[%emt 0:00:10]} 50. Rb4 {[%emt 0:00:02]} Ne6 {[%emt 0:00:00]} 51. Re4 {[%emt 0:00:12]} Kf6 {[%emt 0:00:09]} 52. Rb4 {[%emt 0:00:04]} g5 {[%emt 0:00:13]} 53. h5 {[%emt 0:00:04]} Nf4 {[%emt 0:00:14]} 54. Rb6+ {[%emt 0:00:01]} Kg7 {[%emt 0:00:01]} 55. Ra6 {[%emt 0:00:10]} Rd2 {[%emt 0:00:11]} 56. Ra7+ {[%emt 0:00:04]} Kf8 {[%emt 0:00:03]} 57. Rh7 {[%emt 0:00:02]} Rg2# {[%emt 0:00:01]} 0-1